fUST/lending_fUST_20250513
["ID","MTS","AMOUNT","RATE_DAILY","PERIOD"]
[360919654,1747146637877,-470.0,0.00013698,2]
[360919656,1747146637886,-448.15,0.00013698,2]
[360919658,1747146637896,-189.62203708,0.00013698,2]
[360919660,1747146637906,-400.0,0.00013698,2]
[360919662,1747146637916,-400.0,0.00013698,2]
[360919664,1747146637925,-400.0,0.00013698,2]
[360919666,1747146637935,-791.34,0.00013698,2]
[360919668,1747146637945,-400.0,0.00013698,2]
[360919670,1747146637954,-400.0,0.00013698,2]
[360919673,1747146637964,-400.0,0.00013698,2]
[360919675,1747146637974,-626.68,0.00013698,2]
[360919677,1747146637983,-160.82733364,0.00013698,2]
[360919679,1747146637997,-400.0,0.00013698,2]
[360919681,1747146638007,-400.0,0.00013698,2]
[360919683,1747146638018,-1190.05,0.00013698,2]
[360919685,1747146638028,-400.0,0.00013698,2]
[360919687,1747146638038,-400.0,0.00013698,2]
[360919689,1747146638047,-400.0,0.00013698,2]
[360919691,1747146638057,-716.48,0.00013698,2]
[360919693,1747146638066,-400.0,0.00013698,2]
[360919695,1747146638076,-504.05404287,0.00013698,2]
[360919697,1747146638086,-492.09741395,0.00013698,2]
[360919699,1747146638095,-423.64732987,0.00013698,2]
[360919701,1747146638105,-1000.0,0.00013698,2]
[360919703,1747146638115,-400.0,0.00013698,2]
[360919705,1747146638125,-151.0,0.00013698,2]
[360919707,1747146638134,-400.0,0.00013698,2]
[360919709,1747146638144,-805.19,0.00013698,2]
[360919711,1747146638153,-400.0,0.00013698,2]
[360919713,1747146638163,-400.0,0.00013698,2]
[360919715,1747146638173,-400.0,0.00013698,2]
[360919717,1747146638185,-400.0,0.00013698,2]
[360919719,1747146638197,-151.0,0.00013698,2]
[360919721,1747146638207,-400.0,0.00013698,2]
[360919723,1747146638216,-617.23,0.00013698,2]
[360919725,1747146638226,-400.0,0.00013698,2]
[360919727,1747146638240,-626.79,0.00013698,2]
[360919730,1747146638251,-400.0,0.00013698,2]
[360919733,1747146638262,-400.0,0.00013698,2]
[360919735,1747146638272,-151.0,0.00013698,2]
[360919738,1747146638282,-400.0,0.00013698,2]
[360919741,1747146638292,-400.0,0.00013698,2]
[360919744,1747146638301,-400.0,0.00013698,2]
[360919747,1747146638311,-400.0,0.00013698,2]
[360919750,1747146638320,-151.0,0.00013698,2]
[360919753,1747146638330,-593.66,0.00013698,2]
[360919756,1747146638340,-400.0,0.00013698,2]
[360919758,1747146638350,-739.07,0.00013698,2]
[360919760,1747146638359,-414.53,0.00013698,2]
[360919762,1747146638369,-400.0,0.00013698,2]
[360919764,1747146638379,-400.0,0.00013698,2]
[360919766,1747146638388,-400.0,0.00013698,2]
[360919768,1747146638398,-415.03,0.00013698,2]
[360919770,1747146638408,-400.0,0.00013698,2]
[360919772,1747146638417,-628.36,0.00013698,2]
[360919774,1747146638427,-488.25,0.00013698,2]
[360919776,1747146638436,-400.0,0.00013698,2]
[360919778,1747146638446,-1048.18,0.00013698,2]
[360919780,1747146638455,-400.0,0.00013698,2]
[360919782,1747146638466,-533.0,0.00013698,2]
[360919784,1747146638476,-403.23811787,0.00013698,2]
[360919786,1747146638486,-782.81,0.00013698,2]
[360919788,1747146638499,-550.71,0.00013698,2]
[360919790,1747146638508,-409.49,0.00013698,2]
[360919792,1747146638518,-400.0,0.00013698,2]
[360919794,1747146638528,-400.0,0.00013698,2]
[360919796,1747146638538,-400.0,0.00013698,2]
[360919799,1747146638548,-400.0,0.00013698,2]
[360919801,1747146638558,-648.14,0.00013698,2]
[360919803,1747146638568,-400.0,0.00013698,2]
[360919805,1747146638577,-848.46,0.00013698,2]
[360919807,1747146638587,-400.0,0.00013698,2]
[360919809,1747146638597,-400.0,0.00013698,2]
[360919811,1747146638607,-400.0,0.00013698,2]
[360919813,1747146638616,-1160.39,0.00013698,2]
[360919815,1747146638626,-206.5868995,0.00013698,2]
[360919857,1747146639044,-418.5831005,0.00013698,2]
[360919860,1747146639054,-1.90987791,0.00013698,2]
[360919882,1747146639280,-398.09012209,0.00013698,2]
[360919884,1747146639291,-400.0,0.00013698,2]
[360919886,1747146639300,-400.0,0.00013698,2]
[360919888,1747146639310,-400.0,0.00013698,2]
[360919890,1747146639319,-400.0,0.00013698,2]
[360919892,1747146639330,-527.097287,0.00013698,2]
[360919894,1747146639339,-400.0,0.00013698,2]
[360919896,1747146639349,-1310.03,0.00013698,2]
[360919898,1747146639358,-1132.7,0.00013698,2]
[360919900,1747146639367,-400.0,0.00013698,2]
[360919902,1747146639377,-400.0,0.00013698,2]
[360919904,1747146639387,-400.0,0.00013698,2]
[360919906,1747146639396,-400.0,0.00013698,2]
[360919908,1747146639406,-421.04,0.00013698,2]
[360919910,1747146639416,-617.5,0.00013698,2]
[360919912,1747146639426,-611.19,0.00013698,2]
[360919914,1747146639435,-1039.47,0.00013698,2]
[360919916,1747146639445,-400.0,0.00013698,2]
[360919918,1747146639455,-400.0,0.00013698,2]
[360919920,1747146639464,-4417.5,0.00013698,2]
[360919922,1747146639474,-400.0,0.00013698,2]
[360919924,1747146639483,-417.56,0.00013698,2]
[360919926,1747146639494,-404.54,0.00013698,2]
[360919928,1747146639503,-400.0,0.00013698,2]
[360919973,1747146639768,-1351.7,0.00013698,2]
[360919977,1747146639779,-400.0,0.00013698,2]
[360919980,1747146639789,-372.57656172,0.00013698,2]
[360919981,1747146639799,-500.0,0.00013698,2]
[360919984,1747146639809,-1653.24,0.00013698,2]
[360919986,1747146639818,-400.0,0.00013698,2]
[360919988,1747146639828,-592.0,0.00013698,2]
[360919990,1747146639837,-400.0,0.00013698,2]
[360919992,1747146639846,-400.0,0.00013698,2]
[360919994,1747146639855,-632.7,0.00013698,2]
[360919996,1747146639865,-2221.64,0.00013698,2]
[360919998,1747146639875,-788.71,0.00013698,2]
[360920000,1747146639884,-400.0,0.00013698,2]
[360920002,1747146639893,-400.0,0.00013698,2]
[360920004,1747146639903,-573.36,0.00013698,2]
[360920006,1747146639912,-400.0,0.00013698,2]
[360920008,1747146639922,-400.0,0.00013698,2]
[360920010,1747146639931,-400.0,0.00013698,2]
[360920012,1747146639941,-400.0,0.00013698,2]
[360920014,1747146639950,-763.81,0.00013698,2]
[360920016,1747146639959,-214.479633,0.00013698,2]
[360920018,1747146639969,-400.0,0.00013698,2]
[360920020,1747146639978,-214.479633,0.00013698,2]
[360920022,1747146639989,-488.13,0.00013698,2]
[360920024,1747146639999,-1111.82,0.00013698,2]
[360920026,1747146640009,-214.479633,0.00013698,2]
[360920028,1747146640018,-400.0,0.00013698,2]
[360920029,1747146640028,-214.479633,0.00013698,2]
[360920030,1747146640037,-404.39,0.00013698,2]
[360920032,1747146640046,-674.73,0.00013698,2]
[360920034,1747146640055,-400.0,0.00013698,2]
[360920036,1747146640065,-566.08,0.00013698,2]
[360920038,1747146640074,-400.0,0.00013698,2]
[360920040,1747146640084,-400.0,0.00013698,2]
[360920042,1747146640093,-400.0,0.00013698,2]
[360920044,1747146640103,-1073.21,0.00013698,2]
[360920046,1747146640112,-573.49,0.00013698,2]
[360920048,1747146640121,-151.0,0.00013698,2]
[360920050,1747146640131,-152.086999,0.00013698,2]
[360920052,1747146640141,-400.0,0.00013698,2]
[360920054,1747146640150,-400.0,0.00013698,2]
[360920056,1747146640159,-400.0,0.00013698,2]
[360920058,1747146640169,-493.48,0.00013698,2]
[360920060,1747146640180,-400.0,0.00013698,2]
[360920062,1747146640196,-400.0,0.00013698,2]
[360920064,1747146640206,-1024.58,0.00013698,2]
[360920066,1747146640215,-852.15,0.00013698,2]
[360920068,1747146640225,-400.0,0.00013698,2]
[360920070,1747146640234,-151.0,0.00013698,2]
[360920072,1747146640248,-151.0,0.00013698,2]
[360920074,1747146640257,-3174.23,0.00013698,2]
[360920076,1747146640267,-400.0,0.00013698,2]
[360920078,1747146640276,-2015.77,0.00013698,2]
[360920080,1747146640286,-286.35926736,0.00013698,2]
[360920083,1747146640301,-113.64073264,0.00013698,2]
[360920085,1747146640311,-400.0,0.00013698,2]
[360920087,1747146640320,-400.0,0.00013698,2]
[360920089,1747146640329,-703.58,0.00013698,2]
[360920091,1747146640341,-400.0,0.00013698,2]
[360920093,1747146640350,-699.36,0.00013698,2]
[360920095,1747146640360,-477.38,0.00013698,2]
[360920097,1747146640369,-207.69535638,0.00013698,2]
[360920099,1747146640378,-502.84421096,0.00013698,2]
[360920101,1747146640388,-1324.85,0.00013698,2]
[360920103,1747146640397,-371.62526477,0.00013698,2]
[360920105,1747146640410,-28.37473523,0.00013698,2]
[360920107,1747146640419,-400.0,0.00013698,2]
[360920109,1747146640429,-151.0,0.00013698,2]
[360920112,1747146640439,-400.0,0.00013698,2]
[360920115,1747146640448,-421.61,0.00013698,2]
[360920118,1747146640458,-400.0,0.00013698,2]
[360920120,1747146640467,-400.0,0.00013698,2]
[360920122,1747146640477,-400.0,0.00013698,2]
[360920124,1747146640486,-151.0,0.00013698,2]
[360920125,1747146640498,-151.0,0.00013698,2]
[360920126,1747146640508,-400.0,0.00013698,2]
[360920127,1747146640517,-670.96,0.00013698,2]
[360920128,1747146640527,-194.173447,0.00013698,2]
[360920129,1747146640536,-2038.62,0.00013698,2]
[360920130,1747146640546,-421.32,0.00013698,2]
[360920131,1747146640555,-400.0,0.00013698,2]
[360920132,1747146640565,-379.63668345,0.00013698,2]
[360920133,1747146640574,-2362.62,0.00013698,2]
[360920134,1747146640584,-517.38,0.00013698,2]
[360920135,1747146640593,-152.30513432,0.00013698,2]
[360920136,1747146640606,-247.69486568,0.00013698,2]
[360920137,1747146640616,-400.0,0.00013698,2]
[360920138,1747146640626,-400.0,0.00013698,2]
[360920139,1747146640635,-457.22,0.00013698,2]
[360920140,1747146640645,-228.26533632,0.00013698,2]
[360920141,1747146640657,-458.60466368,0.00013698,2]
[360920142,1747146640666,-1372.82,0.00013698,2]
[360920143,1747146640676,-531.16,0.00013698,2]
[360920144,1747146640686,-22.81533632,0.00013698,2]
[360920145,1747146640698,-377.18466368,0.00013698,2]
[360920146,1747146640708,-41.51686851,0.00013698,2]
[360920147,1747146640720,-522.35313149,0.00013698,2]
[360920148,1747146640730,-1900.32,0.00013698,2]
[360920149,1747146640742,-400.0,0.00013698,2]
[360920150,1747146640753,-672.65,0.00013698,2]
[360920152,1747146640762,-400.0,0.00013698,2]
[360920154,1747146640772,-544.91,0.00013698,2]
[360920156,1747146640781,-400.0,0.00013698,2]
[360920158,1747146640791,-492.76778243,0.00013698,2]
[360920160,1747146640801,-890.86,0.00013698,2]
[360920162,1747146640811,-2748.37,0.00013698,2]
[360920164,1747146640820,-511.59437136,0.00013698,2]
[360920166,1747146640830,-400.0,0.00013698,2]
[360920168,1747146640840,-400.0,0.00013698,2]
[360920171,1747146640850,-714.01,0.00013698,2]
[360920172,1747146640859,-448.16562938,0.00013698,2]
[360920174,1747146640869,-448.84,0.00013698,2]
[360920177,1747146640879,-400.0,0.00013698,2]
[360920179,1747146640888,-151.0,0.00013698,2]
[360920181,1747146640899,-151.0,0.00013698,2]
[360920183,1747146640909,-1038.91,0.00013698,2]
[360920185,1747146640919,-875.41,0.00013698,2]
[360920187,1747146640928,-151.0,0.00013698,2]
[360920189,1747146640938,-643.13,0.00013698,2]
[360920191,1747146640948,-151.0,0.00013698,2]
[360920193,1747146640958,-400.0,0.00013698,2]
[360920195,1747146640967,-400.0,0.00013698,2]
[360920197,1747146640977,-637.5,0.00013698,2]
[360920199,1747146640989,-445.88,0.00013698,2]
[360920200,1747146640999,-400.0,0.00013698,2]
[360920201,1747146641009,-6260.05,0.00013698,2]
[360920202,1747146641019,-320.21687673,0.00013698,2]
[360920203,1747146641041,-79.78312327,0.00013698,2]
[360920204,1747146641051,-400.0,0.00013698,2]
[360920205,1747146641061,-300.0,0.00013698,2]
[360920206,1747146641070,-400.0,0.00013698,2]
[360920207,1747146641080,-186.56592084,0.00013698,2]
[360920223,1747146641721,-213.43407916,0.00013698,2]
[360920225,1747146641731,-400.0,0.00013698,2]
[360920228,1747146641743,-412.64,0.00013698,2]
[360920230,1747146641753,-989.39,0.00013698,2]
[360920231,1747146641763,-1370.18,0.00013698,2]
[360920232,1747146641772,-506.4596391,0.00013698,2]
[360920233,1747146641782,-697.7,0.00013698,2]
[360920234,1747146641792,-1431.43,0.00013698,2]
[360920235,1747146641802,-5821.98,0.00013698,2]
[360920236,1747146641812,-400.0,0.00013698,2]
[360920238,1747146641822,-294.11595402,0.00013698,2]
[360920240,1747146641831,-400.0,0.00013698,2]
[360920242,1747146641842,-605.95,0.00013698,2]
[360920244,1747146641853,-461.28,0.00013698,2]
[360920246,1747146641862,-1838.74,0.00013698,2]
[360920247,1747146641872,-443.81,0.00013698,2]
[360920248,1747146641881,-400.0,0.00013698,2]
[360920249,1747146641891,-400.0,0.00013698,2]
[360920250,1747146641901,-900.53,0.00013698,2]
[360920251,1747146641910,-400.0,0.00013698,2]
[360920252,1747146641920,-442.03350281,0.00013698,2]
[360920253,1747146641930,-1007.18,0.00013698,2]
[360920254,1747146641939,-1171.03,0.00013698,2]
[360920255,1747146641949,-400.0,0.00013698,2]
[360920256,1747146641959,-400.0,0.00013698,2]
[360920257,1747146641968,-400.0,0.00013698,2]
[360920258,1747146641978,-527.6,0.00013698,2]
[360920259,1747146641987,-400.0,0.00013698,2]
[360920260,1747146641997,-311.13116184,0.00013698,2]
[360920261,1747146642007,-1519.28,0.00013698,2]
[360920262,1747146642017,-400.0,0.00013698,2]
[360920263,1747146642028,-400.0,0.00013698,2]
[360920264,1747146642037,-400.0,0.00013698,2]
[360920265,1747146642047,-400.0,0.00013698,2]
[360920266,1747146642056,-400.0,0.00013698,2]
[360920267,1747146642065,-400.0,0.00013698,2]
[360920268,1747146642074,-400.0,0.00013698,2]
[360920269,1747146642085,-400.0,0.00013698,2]
[360920270,1747146642095,-3110.06,0.00013698,2]
[360920271,1747146642163,-400.0,0.00013698,2]
[360920272,1747146642173,-400.0,0.00013698,2]
[360920273,1747146642186,-400.0,0.00013698,2]
[360920274,1747146642195,-195.56652612,0.00013698,2]
[360920275,1747146642205,-400.0,0.00013698,2]
[360920276,1747146642214,-400.0,0.00013698,2]
[360920277,1747146642225,-1210.33,0.00013698,2]
[360920278,1747146642234,-400.0,0.00013698,2]
[360920279,1747146642246,-559.24,0.00013698,2]
[360920280,1747146642255,-431.60979836,0.00013698,2]
[360920281,1747146642266,-2088.18,0.00013698,2]
[360920282,1747146642275,-399.384911,0.00013698,2]
[360920283,1747146642284,-399.384911,0.00013698,2]
[360920285,1747146642294,-400.0,0.00013698,2]
[360920287,1747146642304,-415.61,0.00013698,2]
[360920289,1747146642312,-151.0,0.00013698,2]
[360920291,1747146642322,-151.0,0.00013698,2]
[360920293,1747146642331,-399.384911,0.00013698,2]
[360920295,1747146642340,-399.384911,0.00013698,2]
[360920297,1747146642350,-512.77,0.00013698,2]
[360920299,1747146642360,-400.0,0.00013698,2]
[360920301,1747146642369,-775.76,0.00013698,2]
[360920303,1747146642379,-400.0,0.00013698,2]
[360920305,1747146642388,-400.0,0.00013698,2]
[360920307,1747146642398,-400.0,0.00013698,2]
[360920308,1747146642407,-400.0,0.00013698,2]
[360920310,1747146642417,-416.74237117,0.00013698,2]
[360920312,1747146642426,-435.52,0.00013698,2]
[360920314,1747146642436,-400.0,0.00013698,2]
[360920316,1747146642445,-535.5,0.00013698,2]
[360920318,1747146642455,-400.0,0.00013698,2]
[360920320,1747146642465,-400.0,0.00013698,2]
[360920322,1747146642475,-400.0,0.00013698,2]
[360920324,1747146642484,-151.0,0.00013698,2]
[360920326,1747146642495,-241.171383,0.00013698,2]
[360920328,1747146642505,-400.0,0.00013698,2]
[360920330,1747146642515,-603.96,0.00013698,2]
[360920332,1747146642524,-707.19,0.00013698,2]
[360920334,1747146642533,-726.47,0.00013698,2]
[360920336,1747146642543,-45.88090902,0.00013698,2]
[360920338,1747146642557,-2468.97909098,0.00013698,2]
[360920340,1747146642568,-404.76,0.00013698,2]
[360920342,1747146642578,-450.83,0.00013698,2]
[360920344,1747146642587,-400.0,0.00013698,2]
[360920346,1747146642596,-206.80976154,0.00013698,2]
[360920349,1747146642608,-249.26023846,0.00013698,2]
[360920351,1747146642618,-400.0,0.00013698,2]
[360920353,1747146642628,-968.74,0.00013698,2]
[360920355,1747146642637,-400.0,0.00013698,2]
[360920357,1747146642647,-400.0,0.00013698,2]
[360920359,1747146642656,-171.33601702,0.00013698,2]
[360920749,1747146646341,-228.66398298,0.00013698,2]
[360920752,1747146646351,-400.0,0.00013698,2]
[360920753,1747146646361,-400.0,0.00013698,2]
[360920756,1747146646370,-400.0,0.00013698,2]
[360920759,1747146646382,-643.9,0.00013698,2]
[360920762,1747146646392,-400.0,0.00013698,2]
[360920765,1747146646402,-400.0,0.00013698,2]
[360920767,1747146646411,-400.0,0.00013698,2]
[360920769,1747146646420,-400.0,0.00013698,2]
[360920771,1747146646429,-400.0,0.00013698,2]
[360920773,1747146646438,-962.56,0.00013698,2]
[360920775,1747146646448,-400.0,0.00013698,2]
[360920777,1747146646457,-1371.53,0.00013698,2]
[360920779,1747146646467,-577.99,0.00013698,2]
[360920781,1747146646476,-421.16,0.00013698,2]
[360920783,1747146646485,-89.80618309,0.00013698,2]
[360920785,1747146646499,-61.19381691,0.00013698,2]
[360920787,1747146646508,-151.0,0.00013698,2]
[360920790,1747146646518,-213.05921178,0.00013698,2]
[360920791,1747146646527,-214.695871,0.00013698,2]
[360920794,1747146646537,-827.37,0.00013698,2]
[360920796,1747146646547,-400.0,0.00013698,2]
[360920798,1747146646557,-400.0,0.00013698,2]
[360920800,1747146646566,-400.0,0.00013698,2]
[360920802,1747146646575,-151.0,0.00013698,2]
[360920804,1747146646585,-125.28110139,0.00013698,2]
[360920927,1747147628124,-5000.0,0.00012121,2]
[360920928,1747147628146,-153.03333801,0.00012229,2]
[360920929,1747147628169,-565.68,0.00012329,2]
[360920930,1747147628191,-300.0,0.00012612,2]
[360920931,1747147628213,-1200.0,0.00012613,2]
[360920932,1747147628235,-270.0,0.00012613,2]
[360920933,1747147628257,-496.11093796,0.00012613,2]
[360920934,1747147628279,-514.92383889,0.00012613,2]
[360920935,1747147628300,-500.0,0.00012613,2]
[360920936,1747147628322,-48.94639314,0.00012613,2]
[360920937,1747147636092,-451.05360686,0.00012613,2]
[360920938,1747147636116,-500.0,0.00012613,2]
[360920939,1747147636138,-500.0,0.00012613,2]
[360920940,1747147636159,-500.0,0.00012613,2]
[360920941,1747147636181,-500.0,0.00012613,2]
[360920942,1747147636203,-500.0,0.00012613,2]
[360920943,1747147636224,-500.0,0.00012613,2]
[360920944,1747147636245,-226.84246968,0.00012613,2]
[360920945,1747147649092,-1726.43009402,0.00012487,2]
[360920946,1747147652135,-3273.56990598,0.00012487,2]
[360920947,1747147652157,-273.15753032,0.00012613,2]
[360920948,1747147652177,-500.0,0.00012613,2]
[360920949,1747147652198,-500.0,0.00012613,2]
[360920950,1747147652218,-500.0,0.00012613,2]
[360920951,1747147652238,-500.0,0.00012613,2]
[360920952,1747147652260,-500.0,0.00012613,2]
[360920953,1747147652280,-500.0,0.00012613,2]
[360920954,1747147652301,-500.0,0.00012613,2]
[360920955,1747147652321,-500.0,0.00012613,2]
[360920956,1747147652341,-500.0,0.00012613,2]
[360920957,1747147652368,-500.0,0.00012613,2]
[360920958,1747147652388,-500.0,0.00012613,2]
[360920959,1747147652408,-500.0,0.00012613,2]
[360920960,1747147652428,-500.0,0.00012613,2]
[360920961,1747147652448,-500.0,0.00012613,2]
[360920962,1747147652470,-373.20726875,0.00012613,2]
[360920972,1747147745102,-5000.0,0.00012487,2]
[360920973,1747147745130,-300.0,0.00012611,2]
[360920974,1747147745154,-6424.99295254,0.00012612,2]
[360920975,1747147745182,-347.27765657,0.00012612,2]
[360920976,1747147745209,-360.44668723,0.00012612,2]
[360920977,1747147745234,-389.21640684,0.00012612,2]
[360920978,1747147745258,-376.15514152,0.00012612,2]
[360920979,1747147745282,-500.0,0.00012612,2]
[360920980,1747147745306,-500.0,0.00012612,2]
[360920981,1747147745331,-500.0,0.00012612,2]
[360920982,1747147745355,-500.0,0.00012612,2]
[360920983,1747147745379,-8561.84867491,0.00012612,2]
[360920984,1747147745401,-500.0,0.00012612,2]
[360920985,1747147745424,-500.0,0.00012612,2]
[360920986,1747147745450,-500.0,0.00012612,2]
[360920987,1747147745470,-8561.84867491,0.00012612,2]
[360920988,1747147745490,-500.0,0.00012612,2]
[360920989,1747147745510,-500.0,0.00012612,2]
[360920990,1747147746019,-8561.84867491,0.00012612,2]
[360920991,1747147746064,-8561.84867491,0.00012612,2]
[360920992,1747147746088,-500.0,0.00012612,2]
[360920993,1747147746108,-482.89762842,0.00012612,2]
[360920994,1747147746130,-500.0,0.00012612,2]
[360920995,1747147746150,-8561.84867491,0.00012612,2]
[360920996,1747147746173,-500.0,0.00012612,2]
[360920997,1747147746196,-8561.84867491,0.00012612,2]
[360920998,1747147746218,-500.0,0.00012612,2]
[360920999,1747147746239,-8561.84867491,0.00012612,2]
[360921000,1747147746261,-500.0,0.00012612,2]
[360921001,1747147746282,-8561.84867491,0.00012612,2]
[360921002,1747147746303,-8561.84867491,0.00012612,2]
[360921003,1747147746327,-500.0,0.00012612,2]
[360921004,1747147746348,-8561.84867491,0.00012612,2]
[360921005,1747147746371,-500.0,0.00012612,2]
[360921006,1747147746391,-8561.84867491,0.00012612,2]
[360921007,1747147746414,-194.72413203,0.00012612,2]
[360921008,1747147746439,-8561.84867491,0.00012612,2]
[360921009,1747147746460,-8561.84867491,0.00012612,2]
[360921010,1747147746481,-8561.84867491,0.00012612,2]
[360921011,1747147746502,-8561.84867491,0.00012612,2]
[360921012,1747147746530,-8561.84867491,0.00012612,2]
[360921013,1747147746552,-8561.84867491,0.00012612,2]
[360921014,1747147746573,-8561.84867491,0.00012612,2]
[360921015,1747147746594,-8561.84867491,0.00012612,2]
[360921016,1747147746617,-8561.84867491,0.00012612,2]
[360921017,1747147746637,-8561.84867491,0.00012612,2]
[360921018,1747147746659,-8561.84867491,0.00012612,2]
[360921019,1747147746679,-8561.84867491,0.00012612,2]
[360921020,1747147746703,-8561.84867491,0.00012612,2]
[360921021,1747147746725,-8561.84867491,0.00012612,2]
[360921022,1747147746747,-500.0,0.00012612,2]
[360921023,1747147746769,-8561.84867491,0.00012612,2]
[360921024,1747147746790,-8561.84867491,0.00012612,2]
[360921025,1747147746813,-202.83560603,0.00012612,2]
[360921026,1747147746834,-8561.84867491,0.00012612,2]
[360921027,1747147746855,-8561.84867491,0.00012612,2]
[360921028,1747147746876,-8561.84867491,0.00012612,2]
[360921029,1747147746896,-8561.84867491,0.00012612,2]
[360921030,1747147746916,-8561.84867491,0.00012612,2]
[360921031,1747147746939,-8561.84867491,0.00012612,2]
[360921032,1747147746959,-8561.84867491,0.00012612,2]
[360921033,1747147746980,-8561.84867491,0.00012612,2]
[360921034,1747147747000,-8561.84867491,0.00012612,2]
[360921035,1747147747022,-7246.94891606,0.00012612,2]
[360921039,1747147751087,-1314.89975885,0.00012612,2]
[360921040,1747147751109,-8561.84867491,0.00012612,2]
[360921041,1747147751130,-8561.84867491,0.00012612,2]
[360921042,1747147751153,-8561.84867491,0.00012612,2]
[360921043,1747147751177,-8561.84867491,0.00012612,2]
[360921044,1747147751200,-8561.84867491,0.00012612,2]
[360921045,1747147751222,-8561.84867491,0.00012612,2]
[360921046,1747147751243,-8561.84867491,0.00012612,2]
[360921047,1747147751264,-8561.84867491,0.00012612,2]
[360921048,1747147751286,-8561.84867491,0.00012612,2]
[360921049,1747147751309,-8561.84867491,0.00012612,2]
[360921050,1747147751331,-8561.84867491,0.00012612,2]
[360921051,1747147751607,-8561.84867491,0.00012612,2]
[360921052,1747147751629,-8561.84867491,0.00012612,2]
[360921053,1747147751650,-8561.84867491,0.00012612,2]
[360921054,1747147751672,-8561.84867491,0.00012612,2]
[360921055,1747147751696,-8561.84867491,0.00012612,2]
[360921056,1747147751717,-8561.84867491,0.00012612,2]
[360921057,1747147751738,-8561.84867491,0.00012612,2]
[360921058,1747147751758,-8561.84867491,0.00012612,2]
[360921059,1747147751779,-6751.24986286,0.00012612,2]
[360921112,1747147832433,-5000.0,0.00012486,2]
[360921114,1747147832443,-300.0,0.00012611,2]
[360921116,1747147832452,-1200.0,0.00012611,2]
[360921118,1747147832462,-1810.59881205,0.00012612,2]
[360921120,1747147832471,-8561.84867491,0.00012612,2]
[360921122,1747147832481,-8561.84867491,0.00012612,2]
[360921124,1747147832490,-8561.84867491,0.00012612,2]
[360921126,1747147832499,-8561.84867491,0.00012612,2]
[360921128,1747147832511,-8561.84867491,0.00012612,2]
[360921131,1747147832521,-8561.84867491,0.00012612,2]
[360921133,1747147832531,-2673.91916276,0.00012612,2]
[360921246,1747147838217,-597.37503092,0.00012612,2]
[360921731,1747147843374,-2719.5105736,0.00012612,2]
[360921732,1747147843387,-508.09586925,0.00012612,2]
[360922157,1747148032020,-174.07163383,0.00011498,2]
[360922158,1747148033524,-189.46946149,0.00011498,2]
[360922159,1747148035073,-200.0,0.00011498,2]
[360922160,1747148037312,-216.34533946,0.00011498,2]
[360922161,1747148039883,-236.81198302,0.00011498,2]
[360922162,1747148043072,-190.36410232,0.00011498,2]
[360922163,1747148044697,-303.41674288,0.00011498,2]
[360922164,1747148218518,-246.60609934,0.00011262,2]
[360922165,1747148222064,-244.57781679,0.00011262,2]
[360922166,1747148224900,-375.94441969,0.00011262,2]
[360922167,1747148227048,-241.77603001,0.00011262,2]
[360922168,1747148229972,-293.89529203,0.00011262,2]
[360922169,1747148231582,-151.70063652,0.00011262,2]
[360922170,1747148234248,-305.42821687,0.00011262,2]
[360922171,1747148238056,-169.91242968,0.00011262,2]